bitfinex-derivatives/quotes_ETHF0:USTF0_20240822
["timestamp","ask_amount","ask_price","bid_price","bid_amount"]
[1724343372310,0.53692513,2602.4,2602.2,0.38417]
[1724343372514,0.15331417,2602.3,2602.2,0.38417]
[1724343372819,0.15331417,2602.3,2602.0,0.38996325]
[1724343373021,0.3836,2602.4,2602.1,0.38419]
[1724343373215,0.15334144,2602.3,2602.0,0.38996325]
[1724343373529,0.15334144,2602.2,2602.1,0.38419]
[1724343373816,0.76775,2602.4,2602.1,0.38419]
[1724343374323,0.15334061,2602.3,2602.1,0.38419]
[1724343374622,0.76775,2602.4,2602.1,0.38419]
[1724343375011,0.15334384,2602.3,2602.1,0.38419]
[1724343375212,0.3836,2602.4,2602.1,0.38419]
[1724343375517,0.3836,2602.4,2602.2,0.38417]
[1724343375818,0.3836,2602.4,2602.0,0.00576325]
[1724343376015,0.15331874,2602.3,2602.2,0.38416]
[1724343376321,0.15331874,2602.3,2602.0,0.00576325]
[1724343376518,0.3836,2602.4,2602.1,0.38419]
[1724343376711,0.15332981,2602.3,2602.2,0.38417]
[1724343378123,0.15332981,2602.3,2602.1,0.38418]
[1724343378319,0.15332655,2602.2,2602.0,0.00576325]
[1724343378615,0.76775,2602.4,2602.0,0.00576325]
[1724343378810,0.15333417,2602.3,2602.2,0.38417]
[1724343379211,0.15333417,2602.3,2602.1,0.38418]
[1724343379414,0.15333417,2602.2,2602.0,0.00576325]
[1724343379608,0.53752417,2602.1,2602.0,0.00576325]
[1724343379806,0.53752417,2602.1,2601.5,3.2078]
[1724343379807,0.38425,2601.7,2601.5,0.38427]
[1724343380014,0.38425,2601.7,2601.1,6.9092]
[1724343380318,0.15336988,2601.6,2601.5,0.38428]
[1724343380625,3.2078,2601.7,2601.6,0.38426]
[1724343380828,3.5864,2601.7,2601.6,0.38426]
[1724343381015,3.5864,2601.7,2601.4,0.00576325]
[1724343381016,3.73976519,2601.7,2601.4,0.00576325]
[1724343381228,0.15336519,2601.6,2601.4,0.00576325]
[1724343381425,0.15336519,2601.5,2601.4,0.00576325]
[1724343381721,0.51056519,2601.5,2601.4,0.00576325]
[1724343382622,4.73884519,2601.5,2601.4,0.00576325]
[1724343382926,9.73884519,2601.5,2600.8,0.00336267]
[1724343383118,0.38437,2600.9,2600.8,0.00336267]
[1724343383315,3.2078,2601.0,2600.8,0.00336267]
[1724343383517,0.15336388,2600.9,2600.8,0.00336267]
[1724343383719,0.50116388,2600.9,2600.8,0.00336267]
[1724343383923,0.88496388,2600.9,2600.8,0.00336267]
[1724343384521,0.88496388,2600.9,2600.2,0.38446]
[1724343384522,9.72976388,2600.9,2600.2,0.38446]
[1724343384722,0.38441,2600.6,2600.2,0.38446]
[1724343384917,0.15336388,2600.5,2600.1,3.2078]
[1724343385222,0.15336388,2600.5,2600.3,0.38445]
[1724343385411,0.15336388,2600.4,2600.3,0.38445]
[1724343385615,0.15341741,2600.6,2600.3,0.00269453]
[1724343385816,0.15341741,2600.6,2600.4,0.38444]
[1724343385817,0.15341741,2600.5,2600.4,0.38444]
[1724343386221,0.00474621,2600.6,2600.5,0.38442]
[1724343386522,0.15814701,2600.6,2600.5,0.38442]
[1724343387120,0.15809678,2600.6,2600.5,0.38442]
[1724343388329,0.15810554,2600.6,2600.5,0.38442]
[1724343388523,0.15811408,2600.6,2600.5,0.38442]
[1724343389225,0.15810837,2600.6,2600.5,0.38442]
[1724343389525,0.15810837,2600.6,2600.4,3.5858]
[1724343389526,0.15810837,2600.6,2600.4,3.59223]
[1724343389720,0.00474621,2600.6,2600.4,3.59223]
[1724343389916,0.00474621,2600.6,2600.4,0.38443]
[1724343390121,0.00474621,2600.6,2600.3,0.00269453]
[1724343390318,0.38444,2600.4,2600.3,0.00269453]
[1724343390524,0.53785426,2600.4,2600.3,0.00269453]
[1724343390723,4.3834734,2600.4,2600.3,0.00269453]
[1724343391119,7.5912734,2600.4,2600.3,0.00269453]
[1724343391327,12.5912734,2600.4,2600.3,0.00269453]
[1724343391530,8.5523834,2600.4,2600.3,0.00269453]
[1724343391828,8.5523834,2600.4,2600.1,0.38448]
[1724343391829,4.3834834,2600.4,2600.1,0.38448]
[1724343392016,0.5286334,2600.3,2600.2,0.38447]
[1724343392624,0.5286334,2600.3,2600.2,0.00440146]
[1724343392933,0.5286334,2600.3,2600.2,0.38887146]
[1724343393123,0.3752,2600.3,2600.2,0.38887146]
[1724343395332,0.36754621,2600.6,2600.2,0.00440146]
[1724343395730,0.36754621,2600.6,2600.5,0.38442]
[1724343395926,0.36754621,2600.6,2600.2,0.00440146]
[1724343395927,0.75195621,2600.6,2600.4,0.38443]
[1724343396127,0.38443,2600.5,2600.2,0.00440146]
[1724343396432,0.36754621,2600.6,2600.2,0.38887146]
[1724343396433,3.59224,2600.4,2600.2,0.38887146]
[1724343396729,0.3708,2600.3,2600.2,0.38887146]
[1724343397230,0.3708,2600.3,2600.2,0.00440146]
[1724343397435,0.3708,2600.3,2600.2,0.38887146]
[1724343398526,0.3708,2600.3,2600.2,0.00440146]
[1724343398732,4.60085,2600.3,2600.2,0.00440146]
[1724343402037,4.2164,2600.3,2600.2,0.38887146]
[1724343402340,0.75196621,2600.6,2600.4,0.38443]
[1724343402645,0.38443,2600.5,2600.3,0.38445]
[1724343402939,0.38444,2600.4,2600.2,0.38886146]
[1724343403532,0.38445,2600.3,2600.2,0.00440146]
[1724343403838,4.23005,2600.3,2600.2,0.00440146]
[1724343404029,3.2078,2600.3,2600.2,0.38887146]
[1724343404225,0.38445,2600.4,2600.2,0.38887146]
[1724343404626,0.3714,2600.5,2600.2,0.00440146]
[1724343404836,0.38445,2600.4,2600.2,0.38886146]
[1724343405040,0.38445,2600.3,2600.2,0.00440146]
[1724343406035,0.38445,2600.3,2600.2,0.38887146]
[1724343406241,0.38445,2600.4,2600.2,0.00440146]
[1724343406429,0.75583,2600.5,2600.3,0.38445]
[1724343406628,0.3714,2600.5,2600.4,0.38444]
[1724343407028,4.217,2600.5,2600.4,0.38444]
[1724343407239,4.60142,2600.5,2600.3,0.38445]
[1724343407440,4.60142,2600.5,2600.2,0.00440146]
[1724343407441,0.38445,2600.3,2600.2,0.00440146]
[1724343407943,7.43785,2600.3,2600.2,0.00440146]
[1724343408144,8.39899,2600.3,2600.2,0.00440146]
[1724343409244,7.43785,2600.3,2600.2,0.00440146]
[1724343412242,7.0534,2600.3,2600.2,0.00440146]
[1724343412448,7.0534,2600.3,2600.2,0.38887146]
[1724343412647,7.43785,2600.3,2600.2,0.38887146]
[1724343414647,7.0534,2600.3,2600.2,0.38887146]
[1724343414851,0.3714,2600.5,2600.4,0.38444]
[1724343415344,0.3714,2600.5,2600.2,0.00440146]
[1724343415547,0.3714,2600.5,2600.2,0.38886146]
[1724343415548,0.38444,2600.4,2600.2,0.38886146]
[1724343415755,0.75583,2600.5,2600.3,0.38445]
[1724343416450,3.21254621,2600.6,2600.5,0.38442]
[1724343416644,7.3108,2601.7,2600.5,12.0534]
[1724343416847,7.3108,2601.7,2600.3,0.3619]
[1724343416848,8.3954,2601.7,2601.0,0.38435]
[1724343417155,8.3954,2601.7,2600.7,7.49279]
[1724343417156,0.38431,2601.3,2600.7,3.2078]
[1724343417356,0.38431,2601.3,2601.0,0.38435]
[1724343417545,0.38431,2601.3,2600.8,40.5]
[1724343417745,0.01003573,2601.1,2601.0,0.38435]
[1724343420153,0.01003573,2601.1,2601.0,3.59215]
[1724343420353,0.38363573,2601.1,2600.7,3.2078]
[1724343420554,0.73623573,2601.1,2601.0,0.38435]
[1724343420856,0.73623573,2601.1,2600.7,3.2078]
[1724343421360,0.73623573,2601.1,2601.0,0.38435]
[1724343421558,0.73623573,2601.1,2600.8,0.38437]
[1724343421854,0.38436,2601.0,2600.7,3.2078]
[1724343422060,0.38436,2601.0,2600.8,0.38438]
[1724343422356,0.38438,2600.8,2600.6,0.3844]
[1724343422656,0.38438,2600.8,2600.6,0.38441]
[1724343422657,0.3623,2600.7,2600.6,0.38441]
[1724343424058,0.51576427,2600.7,2600.6,0.38441]
[1724343425057,0.73623573,2601.1,2600.9,0.38435]
[1724343425245,0.15343093,2601.0,2600.6,3.324]
[1724343425451,0.15343093,2601.0,2600.9,0.38437]
[1724343426154,0.15343093,2601.0,2600.6,3.324]
[1724343426358,0.15343093,2601.0,2600.8,0.38437]
[1724343426559,0.15343093,2601.0,2600.9,0.38437]
[1724343430161,0.15343093,2601.0,2600.9,7.55317]
[1724343430459,0.14138719,2601.0,2600.9,8.51409]
[1724343431256,0.01003573,2601.1,2601.0,0.38435]
[1724343433554,0.01003573,2601.1,2600.8,3.2078]
[1724343433771,0.01003573,2601.1,2600.9,0.38436]
[1724343433958,0.39438573,2601.1,2600.9,0.38436]
[1724343434157,0.01003573,2601.1,2601.0,0.38435]
[1724343434353,0.73673573,2601.1,2601.0,0.38435]
[1724343434656,1.12107573,2601.1,2601.0,0.38435]
[1724343434957,0.38436,2601.0,2600.8,3.59217]
[1724343435159,0.38437,2600.9,2600.8,3.2078]
[1724343435362,0.38441,2600.7,2600.5,0.38442]
[1724343435554,0.3844,2600.7,2600.5,0.38442]
[1724343435752,0.367,2600.6,2600.3,3.2078]
[1724343435955,0.38444,2600.4,2600.2,0.38887146]
[1724343436166,0.38445,2600.3,2600.2,0.00440146]
[1724343436461,4.23005,2600.3,2600.2,0.00440146]
[1724343436958,7.43785,2600.3,2600.2,0.00440146]
[1724343437160,0.38451,2600.0,2599.7,0.38453]
[1724343437362,0.38451,2600.0,2599.5,3.2078]
[1724343437363,0.38453,2599.8,2599.6,0.38455]
[1724343437561,0.38454,2599.8,2599.5,0.38457]
[1724343437750,0.3809,2599.7,2599.2,3.2078]
[1724343437952,0.38457,2599.6,2599.2,3.59241]
[1724343438167,0.3809,2599.7,2599.2,3.21053035]
[1724343438356,0.3809,2599.7,2599.4,0.38458]
[1724343438663,0.38666325,2599.7,2599.4,0.38458]
[1724343439051,0.38666325,2599.7,2599.3,0.3846]
[1724343439052,0.77121325,2599.7,2599.3,0.3846]
[1724343439263,0.38666325,2599.7,2599.4,0.38458]
[1724343439655,0.38666325,2599.7,2599.2,3.21053035]
[1724343439856,0.38666325,2599.7,2599.4,0.38458]
[1724343440054,0.38666325,2599.7,2599.6,0.38456]
[1724343440256,0.00576325,2599.7,2599.6,0.38456]
[1724343441654,0.00576325,2599.7,2599.6,4.23096]
[1724343441859,0.00576325,2599.7,2599.6,4.58536]
[1724343442966,0.00576325,2599.7,2599.6,0.38456]
[1724343446569,0.00576325,2599.7,2599.6,4.23096]
[1724343448960,0.00576325,2599.7,2599.6,0.38456]
[1724343450385,0.15938861,2599.7,2599.6,0.38456]
[1724343451281,0.15943832,2599.7,2599.6,0.38456]
[1724343452574,0.15943832,2599.7,2599.2,4.17206035]
[1724343452575,0.15943832,2599.7,2599.2,3.21053035]
[1724343452781,0.90454507,2599.6,2599.3,0.3846]
[1724343452978,0.3559,2599.5,2599.3,0.3846]
[1724343453179,0.3559,2599.5,2599.4,0.38459]
[1724343453375,0.38459,2599.4,2599.2,3.21053035]
[1724343453778,0.74048,2599.5,2599.3,0.3846]
[1724343453984,0.38459,2599.4,2599.2,0.38734035]
[1724343454190,0.74049,2599.5,2599.2,0.38734035]
[1724343454488,0.38459,2599.4,2599.2,0.38734035]
[1724343454683,0.74048,2599.5,2599.3,0.3846]
[1724343454880,0.3559,2599.5,2599.4,0.38459]
[1724343455781,0.00576325,2599.7,2599.6,0.38456]
[1724343455987,0.53552632,2599.7,2599.6,0.38456]
[1724343456188,0.38186325,2599.7,2599.6,0.38456]
[1724343456778,0.38186325,2599.7,2599.6,1.34596]
[1724343457183,0.00576325,2599.7,2599.6,5.19236]
[1724343457379,0.00576325,2599.7,2599.6,14.47776]
[1724343457884,3.25e-06,2599.7,2599.6,54.97776]
[1724343458075,0.3523,2600.5,2599.7,0.96137]
[1724343458274,0.3523,2600.5,2600.4,0.38444]
[1724343458889,0.7283,2600.8,2600.7,0.3844]
[1724343459087,0.88182238,2600.8,2600.7,0.3844]
[1724343459282,0.88182238,2600.8,2600.6,0.3844]
[1724343459475,0.7283,2600.8,2600.6,0.3844]
[1724343459789,0.15354178,2600.7,2600.6,0.3844]
[1724343459989,0.15354178,2600.7,2600.5,0.00576325]
[1724343460191,0.7283,2600.8,2600.5,0.00576325]
[1724343460488,0.15353138,2600.7,2600.6,0.38441]
[1724343460881,0.7283,2600.8,2600.6,0.38441]
[1724343461082,0.15353174,2600.7,2600.5,0.39018325]
[1724343461286,0.7283,2600.8,2600.6,0.38441]
[1724343461585,0.15353868,2600.7,2600.6,0.38441]
[1724343461786,0.7283,2600.8,2600.6,0.38441]
[1724343462092,0.15353136,2600.7,2600.5,0.39018325]
[1724343462291,0.7283,2600.8,2600.6,0.38441]
[1724343462484,0.15353346,2600.7,2600.6,0.38441]
[1724343462684,0.7283,2600.8,2600.6,0.38441]
[1724343463080,0.15352492,2600.7,2600.6,0.38441]
[1724343463587,0.15353875,2600.7,2600.6,0.38441]
[1724343464185,0.15353875,2600.7,2600.5,0.00576325]
[1724343464483,0.7283,2600.8,2600.5,0.00576325]
[1724343464686,0.5379452,2600.7,2600.5,0.00576325]
[1724343464890,0.7283,2600.8,2600.5,0.39018325]
[1724343464891,1.11269,2600.8,2600.5,0.39018325]
[1724343465077,0.15353896,2600.7,2600.5,0.39018325]
[1724343465284,1.11269,2600.8,2600.5,0.39018325]
[1724343465584,0.15353629,2600.7,2600.5,0.39018325]
[1724343465788,0.3844,2600.7,2600.5,0.39018325]
[1724343466092,0.15353912,2600.6,2600.5,0.39018325]
[1724343466289,0.15354009,2600.6,2600.5,0.39018325]
[1724343466592,1.11269,2600.8,2600.7,0.3844]
[1724343466593,0.7283,2600.8,2600.7,0.3844]
[1724343466776,0.15352432,2600.8,2600.7,0.3844]
[1724343466977,0.3523,2600.9,2600.8,0.38438]
[1724343468281,0.50580274,2600.9,2600.7,0.38439]
[1724343468685,0.73667,2600.9,2600.7,0.38439]
[1724343468884,0.3523,2600.9,2600.7,0.38439]
[1724343469087,0.3523,2600.9,2600.8,0.38438]
[1724343469290,0.50581829,2600.9,2600.8,0.38438]
[1724343470294,0.15351829,2600.9,2600.8,4.22918]
[1724343470492,0.00576325,2601.0,2600.9,0.38437]
[1724343470895,0.15925794,2601.0,2600.9,4.22917]
[1724343471701,0.00576325,2601.0,2600.9,4.22917]
[1724343472098,0.00576325,2601.0,2600.9,5.19009]
[1724343472708,0.00576325,2601.0,2600.9,4.22917]
[1724343474094,0.00576325,2601.0,2600.9,5.19009]
[1724343474306,0.00576325,2601.0,2600.9,4.22917]
[1724343475409,0.00576325,2601.0,2600.9,5.19009]
[1724343475703,0.00576325,2601.0,2600.9,5.53809]
[1724343476303,0.00576325,2601.0,2600.9,10.53809]
[1724343478297,0.00576325,2601.0,2600.9,4.22917]
[1724343479409,0.00576325,2601.0,2600.9,0.38437]
[1724343479708,0.00576325,2601.0,2600.8,3.2078]
[1724343479709,0.38437,2600.9,2600.8,3.2078]
[1724343480007,1.49917,2600.9,2600.8,3.2078]
[1724343480209,5.49748327,2600.9,2600.8,3.2078]
[1724343480799,1.26831327,2600.9,2600.8,3.2078]
[1724343481209,1.1148,2600.9,2600.8,3.2078]
[1724343481401,0.88951691,2600.9,2600.8,3.59218]
[1724343481601,0.736,2600.9,2600.8,3.59218]
[1724343482499,0.736,2600.9,2600.8,3.2078]
[1724343482701,0.88951322,2600.9,2600.8,3.2078]
[1724343482905,0.736,2600.9,2600.8,3.59218]
[1724343484310,0.00576325,2601.0,2600.9,0.38437]
[1724343484603,0.00576325,2601.0,2600.9,4.22917]
[1724343486816,0.00576325,2601.0,2600.9,5.19009]
[1724343487017,0.00576325,2601.0,2600.9,4.22917]
[1724343489416,0.00576325,2601.0,2600.9,5.19009]
[1724343490306,0.00576325,2601.0,2600.9,0.38437]
[1724343491216,0.00576325,2601.0,2600.9,4.66929]
[1724343491406,0.00576325,2601.0,2600.9,8.51409]
[1724343492204,0.00576325,2601.0,2600.9,14.47501]
[1724343493119,0.00576325,2601.0,2600.9,13.51409]
[1724343493410,0.00576325,2601.0,2600.9,3.70837]
[1724343493613,0.00576325,2601.0,2600.9,7.55317]
[1724343494218,0.00576325,2601.0,2600.9,8.51409]
[1724343496011,0.00576325,2601.0,2600.9,7.55317]
[1724343496710,0.00576325,2601.0,2600.9,8.51409]
[1724343497522,0.00576325,2601.0,2600.9,9.47501]
[1724343500911,0.00576325,2601.0,2600.9,4.66929]
[1724343501411,0.15922652,2601.0,2600.9,4.66929]
[1724343503020,0.15922652,2601.0,2600.9,3.70837]
[1724343503519,0.15922652,2601.0,2600.9,4.66929]
[1724343504314,0.15922652,2601.0,2600.9,5.63021]
[1724343504817,0.15922652,2601.0,2600.9,4.66929]
[1724343505419,0.15922652,2601.0,2600.9,3.70837]
[1724343505420,0.15922961,2601.0,2600.9,3.70837]
[1724343505826,0.15922961,2601.0,2600.9,4.66929]
[1724343506122,0.15922961,2601.0,2600.9,3.70837]
[1724343506925,0.15922961,2601.0,2600.9,0.38437]
[1724343507228,4.00402961,2601.0,2600.9,0.38437]
[1724343510628,3.85056325,2601.0,2600.9,0.38437]
[1724343511421,0.00576325,2601.0,2600.9,0.38437]
[1724343511616,0.15924835,2601.0,2600.9,4.66929]
[1724343511920,0.00576325,2601.0,2600.9,4.66929]
[1724343512124,0.15920747,2601.0,2600.9,4.66929]
[1724343513124,0.15920747,2601.0,2600.9,5.63021]
[1724343513323,0.15920747,2601.0,2600.9,6.63118416]
[1724343514528,0.15920747,2601.0,2600.9,4.66929]
[1724343517028,0.15920747,2601.0,2600.9,3.70837]
[1724343518233,0.00576325,2601.0,2600.9,3.70837]
[1724343518623,0.15922788,2601.0,2600.9,3.70837]
[1724343519226,0.15922788,2601.0,2600.9,4.66929]
[1724343519621,0.15922788,2601.0,2600.9,6.63118416]
[1724343520135,0.15922788,2601.0,2600.9,8.5538822]
[1724343520337,0.15922788,2601.0,2600.9,12.39868482]
[1724343520629,0.15922788,2601.0,2600.9,12.90458259]
[1724343520931,0.00427248,2601.1,2601.0,2.30611]
[1724343521135,0.15340349,2601.1,2601.0,9.58033647]
[1724343521321,0.15340349,2601.1,2601.0,9.93743647]
[1724343521528,2.48e-06,2601.1,2601.0,14.93743647]
[1724343521842,0.15337245,2601.1,2601.0,14.93743647]
[1724343522137,0.15337245,2601.1,2601.0,13.43056454]
[1724343522138,2.48e-06,2601.1,2601.0,13.43056454]
[1724343523228,0.15337147,2601.1,2601.0,13.43056454]
[1724343523433,0.153372,2601.1,2601.0,13.43056454]
[1724343523627,0.153372,2601.1,2601.0,14.4357909]
[1724343523838,0.153372,2601.1,2601.0,14.43575766]
[1724343524331,0.153372,2601.1,2601.0,12.15610312]
[1724343524525,0.153372,2601.1,2601.0,7.15610312]
[1724343524727,0.153372,2601.1,2601.0,47.65610312]
[1724343524931,0.15338659,2601.1,2601.0,7.15610312]
[1724343527940,0.00576325,2601.3,2601.2,2.30594]
[1724343528241,0.3683,2601.9,2601.8,0.38423]
[1724343528547,0.3683,2601.9,2601.8,6.91603]
[1724343528744,0.3683,2601.9,2601.8,3.2078]
[1724343528944,4.59885686,2601.9,2601.8,3.21203432]
[1724343529243,4.59885686,2601.9,2601.8,0.00423432]
[1724343530839,4.59885686,2601.9,2601.8,0.38846432]
[1724343531143,4.21463686,2601.9,2601.8,0.38846432]
[1724343532047,4.59885686,2601.9,2601.8,0.00423432]
[1724343532451,4.21463686,2601.9,2601.8,0.38846432]
[1724343533152,4.21463686,2601.9,2601.8,1.34905432]
[1724343533153,0.37143686,2601.9,2601.8,1.34905432]
[1724343534947,0.00313686,2601.9,2601.8,1.34905432]
[1724343536541,0.00313686,2601.9,2601.8,0.38846432]
[1724343539151,0.00313686,2601.9,2601.8,1.34905432]
[1724343540048,0.15636544,2601.9,2601.8,1.34905432]
[1724343540546,0.15636544,2601.9,2601.8,0.38846432]
[1724343540951,0.00313686,2601.9,2601.8,0.38846432]
[1724343541251,0.15639251,2601.9,2601.8,0.38846432]
[1724343543052,0.15639251,2601.9,2601.8,1.34905432]
[1724343544047,0.00313686,2601.9,2601.8,1.34905432]
[1724343544253,0.15637051,2601.9,2601.8,1.72375432]
[1724343544957,0.15637051,2601.9,2601.8,4.93155432]
[1724343546858,0.00313686,2601.9,2601.8,5.89214432]
[1724343548253,0.00576325,2602.1,2602.0,1.34471]
[1724343548449,0.38409,2602.8,2602.1,0.96048]
[1724343548649,0.751,2602.6,2602.5,0.38413]
[1724343549048,0.3744,2602.6,2602.5,0.38413]
[1724343549257,0.37804957,2602.6,2602.5,1.34446]
[1724343549559,0.00364957,2602.6,2602.5,1.34446]
[1724343549858,0.00364957,2602.6,2602.5,4.66846]
[1724343550361,0.00576325,2602.8,2602.7,0.3841]
[1724343550548,0.00576325,2602.8,2602.7,3.5919]
[1724343551144,0.00934796,2602.8,2602.7,3.5919]
[1724343551353,0.00934796,2602.8,2602.5,3.324]
[1724343551354,4.23582796,2602.8,2602.5,3.324]
[1724343551550,0.39343796,2602.8,2602.6,0.3841]
[1724343551748,0.39344796,2602.8,2602.6,0.3841]
[1724343552251,0.39344796,2602.8,2602.7,0.3841]
[1724343552446,0.3841,2602.7,2602.5,3.324]
[1724343552651,0.3841,2602.7,2602.3,3.2078]
[1724343552652,3.8424,2602.7,2602.3,3.2078]
[1724343552858,0.75802,2602.6,2602.2,3.324]
[1724343553051,0.3606,2602.5,2602.4,0.38414]
[1724343553542,0.3606,2602.5,2602.3,3.59195]
[1724343553543,4.58714,2602.5,2602.3,3.59195]
[1724343553746,0.3508,2602.4,2602.3,0.38416]
[1724343554551,0.3606,2602.5,2602.4,0.38414]
[1724343555051,0.3606,2602.5,2602.4,1.34451]
[1724343556349,0.3606,2602.5,2602.4,0.38414]
[1724343557758,0.74473,2602.5,2602.2,6.5318]
[1724343557955,0.3606,2602.5,2602.3,0.38415]
[1724343558157,0.74473,2602.5,2602.4,0.38414]
[1724343558358,0.3606,2602.5,2602.4,0.38414]
[1724343559456,0.00934796,2602.8,2602.7,0.3841]
[1724343559760,0.38494796,2602.8,2602.7,0.3841]
[1724343560446,0.38494796,2602.8,2602.7,1.7671]
[1724343560646,0.38494796,2602.8,2602.7,6.56976]
[1724343560647,0.00934796,2602.8,2602.7,6.56976]
[1724343561368,1.1001,2603.1,2603.0,0.38406]
[1724343561551,1.1001,2603.1,2603.0,4.97486]
[1724343562363,1.103341,2603.1,2603.0,4.97486]
[1724343562663,1.103341,2603.1,2603.0,6.91186]
[1724343563354,0.00576325,2603.3,2603.2,0.38403]
[1724343564458,0.010653,2603.3,2603.2,0.38403]
[1724343568162,0.010653,2603.3,2603.2,1.3441]
[1724343568366,0.7309,2603.7,2603.6,0.38397]
[1724343569064,0.7309,2603.7,2603.6,3.59177]
[1724343569270,0.7357873,2603.7,2603.6,3.59177]
[1724343569763,4.9605373,2603.7,2603.6,3.2078]
[1724343569967,0.38399,2603.5,2603.3,0.38401]
[1724343570160,9.5765873,2603.7,2603.2,6.5278]
[1724343570161,0.7357873,2603.7,2603.2,6.5278]
[1724343570362,0.38399,2603.5,2603.3,0.38401]
[1724343570861,0.38401,2603.3,2603.2,3.32]
[1724343571063,0.38404,2603.1,2603.0,0.00576325]
[1724343571264,4.22564,2603.1,2603.0,0.00576325]
[1724343571674,0.38407,2602.9,2602.8,3.2078]
[1724343571864,3.8416,2603.1,2602.8,3.2078]
[1724343571865,0.38404,2603.1,2602.9,0.38407]
[1724343572057,0.7022,2603.2,2602.8,3.2078]
[1724343572366,0.7022,2603.2,2602.8,3.59189]
[1724343572367,0.38407,2603.0,2602.8,3.59189]
[1724343572766,0.3592,2602.9,2602.8,3.59189]
[1724343573169,7.4086,2602.9,2602.6,0.00576325]
[1724343573369,7.4094,2602.9,2602.6,0.00576325]
[1724343573561,0.3592,2602.9,2602.7,0.3841]
[1724343573762,0.74327,2602.9,2602.7,0.3841]
[1724343573957,0.74327,2602.9,2602.6,0.00576325]
[1724343573958,0.74327,2602.9,2602.6,0.38987325]
[1724343574772,0.38409,2602.8,2602.6,0.00576325]
[1724343575069,0.7324,2602.7,2602.6,0.00576325]
[1724343575576,0.3483,2602.7,2602.6,0.00576325]
[1724343576464,0.3483,2602.7,2602.6,0.38988325]
[1724343576465,0.7344,2602.7,2602.6,0.38988325]
[1724343576665,0.3483,2602.7,2602.6,0.38988325]
[1724343577973,0.3483,2602.7,2602.6,3.59768325]
[1724343580480,0.7324,2602.7,2602.6,0.00576325]
[1724343580777,4.5748,2602.7,2602.6,0.00576325]
[1724343580976,4.1907,2602.7,2602.6,0.38988325]
[1724343581675,4.1907,2602.7,2602.6,0.00576325]
[1724343581676,4.5748,2602.7,2602.6,0.00576325]
[1724343582068,4.5748,2602.7,2602.0,3.32]
[1724343582069,0.38416,2602.3,2602.0,3.32]
[1724343582273,0.365,2602.2,2602.1,0.38419]
[1724343585175,0.365,2602.2,2602.1,3.59199]
[1724343585678,0.00576325,2602.4,2602.3,0.38416]
[1724343587178,0.38409,2602.8,2602.3,0.38416]
[1724343587179,0.3839,2602.9,2602.8,0.38409]
[1724343587378,0.3839,2602.9,2602.8,3.70409]
[1724343587578,0.7362,2603.1,2603.0,0.38406]
[1724343587776,1.1201,2603.1,2603.0,0.38406]
[1724343590386,0.3793,2603.1,2603.0,0.38406]
[1724343590993,0.3793,2603.1,2603.0,3.59186]
[1724343591175,0.3793,2603.1,2603.0,3.2078]
[1724343591487,0.00576325,2603.3,2603.0,3.59186]
[1724343591783,0.00576325,2603.3,2603.2,3.70403]
[1724343592182,0.00576325,2603.3,2603.2,7.54563]
[1724343592385,0.00576325,2603.3,2603.2,7.90283]
[1724343592778,0.00576325,2603.3,2603.2,8.8629]
[1724343593088,0.00576325,2603.3,2603.2,9.2297]
[1724343594883,0.00576325,2603.3,2603.2,8.5057]
[1724343596785,0.00576325,2603.3,2603.2,9.46577]
[1724343596984,0.00576325,2603.3,2603.2,14.46577]
[1724343599091,0.00576325,2603.3,2603.2,8.5057]
[1724343600186,0.00576325,2603.3,2603.2,9.46577]
[1724343600390,0.0048873,2603.7,2603.6,0.38397]
[1724343600590,0.0048873,2603.7,2603.6,6.91177]
[1724343600991,0.0048873,2603.7,2603.6,7.26407]
[1724343601388,0.00384214,2603.9,2603.8,0.38394]
[1724343601695,0.00384214,2603.9,2603.8,3.70394]
[1724343601892,0.38386,2604.3,2604.0,0.38389]
[1724343602197,0.38387,2604.3,2604.1,0.38389]
[1724343602401,0.00391849,2604.3,2604.2,0.38388]
[1724343603091,0.00391849,2604.3,2604.1,0.38695991]
[1724343603092,0.38778849,2604.3,2604.1,0.38695991]
[1724343603888,0.00391849,2604.3,2604.2,0.38388]
[1724343604291,0.00391849,2604.3,2604.2,3.59168]
[1724343605301,0.00391849,2604.3,2604.2,0.38388]
[1724343605695,0.00391849,2604.3,2604.1,0.00307991]
[1724343605899,1.34359,2604.2,2604.1,0.00307991]
[1724343606102,0.38394,2603.9,2603.6,3.32]
[1724343606290,0.3737,2603.8,2603.7,0.38395]
[1724343606491,0.38388,2604.2,2604.0,0.3839]
[1724343606691,0.38388,2604.2,2603.7,3.32]
[1724343606692,0.38389,2604.1,2603.9,0.38392]
[1724343606890,0.38393,2603.9,2603.7,3.70394]
[1724343607098,0.352,2603.8,2603.7,3.70724769]
[1724343607293,0.7257,2603.8,2603.7,3.70724769]
[1724343608000,0.7257,2603.8,2603.7,6.91504769]
[1724343608500,0.00391849,2604.3,2604.2,0.38388]
[1724343608501,0.38779849,2604.3,2604.2,0.38388]
[1724343608797,4.30733,2605.3,2605.1,0.38374]
[1724343608999,7.762,2605.3,2605.2,3.70373]
[1724343609199,7.762,2605.3,2605.2,3.32]
[1724343609200,3.9236,2605.3,2605.2,3.32]
[1724343609505,7.762,2605.3,2605.2,3.70373]
[1724343609698,7.7668152,2605.3,2605.2,3.70373]
[1724343610096,0.7206152,2605.3,2605.2,3.70373]
[1724343610805,0.0048152,2605.3,2605.2,3.70373]
[1724343611299,0.7367,2605.8,2605.2,3.8384]
[1724343611494,3.2078,2605.9,2605.7,0.38366]
[1724343611807,0.38366,2605.7,2605.6,3.32]
[1724343612205,4.22126,2605.7,2605.6,3.32]
[1724343612398,0.38685613,2605.7,2605.6,2.55667704]
[1724343612600,0.38685613,2605.7,2605.6,0.00467704]
[1724343612601,9.22445613,2605.7,2605.6,0.00467704]
[1724343612904,9.22445613,2605.7,2605.0,3.32]
[1724343613101,0.95923,2605.5,2605.0,3.32]
[1724343613293,0.38374,2605.2,2605.0,3.32]
[1724343613491,0.3627,2605.4,2605.0,3.32]
[1724343613492,0.38375,2605.1,2605.0,3.32]